fUST/lending_fUST_20240704
["ID","MTS","AMOUNT","RATE_DAILY","PERIOD"]
[331068571,1720059047606,-505.48075044,0.00014379,2]
[331068572,1720059047632,-500.0,0.00014379,2]
[331068574,1720059047643,-500.0,0.00014379,2]
[331068576,1720059047651,-500.0,0.00014379,2]
[331068578,1720059047661,-500.0,0.00014379,2]
[331068580,1720059047671,-500.0,0.00014379,2]
[331068582,1720059047679,-500.0,0.00014379,2]
[331068584,1720059047688,-500.0,0.00014379,2]
[331068586,1720059047698,-450.40824978,0.00014379,2]
[331068588,1720059047708,-500.0,0.00014379,2]
[331068590,1720059047718,-531.21443449,0.00014379,2]
[331068592,1720059047727,-500.0,0.00014379,2]
[331068602,1720059047817,-500.0,0.00014379,2]
[331068604,1720059047828,-500.0,0.00014379,2]
[331068606,1720059047838,-500.0,0.00014379,2]
[331068608,1720059047847,-500.0,0.00014379,2]
[331068610,1720059047857,-500.0,0.00014379,2]
[331068612,1720059047866,-500.0,0.00014379,2]
[331068614,1720059047875,-500.0,0.00014379,2]
[331068616,1720059047885,-500.0,0.00014379,2]
[331068618,1720059047895,-500.0,0.00014379,2]
[331068620,1720059047904,-500.0,0.00014379,2]
[331068622,1720059047914,-500.0,0.00014379,2]
[331068624,1720059047923,-500.0,0.00014379,2]
[331068626,1720059047932,-500.0,0.00014379,2]
[331068628,1720059047942,-501.21599592,0.00014379,2]
[331068630,1720059047951,-500.0,0.00014379,2]
[331068632,1720059047960,-500.0,0.00014379,2]
[331068634,1720059047970,-471.25800362,0.00014379,2]
[331068636,1720059047979,-501.07704533,0.00014379,2]
[331068638,1720059047988,-500.0,0.00014379,2]
[331068639,1720059047998,-500.0,0.00014379,2]
[331068641,1720059048007,-500.0,0.00014379,2]
[331068643,1720059048017,-706.635044,0.00014379,2]
[331068645,1720059048026,-706.635044,0.00014379,2]
[331068647,1720059048035,-505.38219807,0.00014379,2]
[331068649,1720059048044,-706.635044,0.00014379,2]
[331068651,1720059048053,-706.635044,0.00014379,2]
[331068653,1720059048062,-706.635044,0.00014379,2]
[331068655,1720059048071,-501.66864613,0.00014379,2]
[331068657,1720059048081,-500.0,0.00014379,2]
[331068659,1720059048090,-706.635044,0.00014379,2]
[331068661,1720059048099,-500.0,0.00014379,2]
[331068663,1720059048108,-242.62710869,0.00014379,2]
[331068665,1720059048133,-500.0,0.00014379,2]
[331068667,1720059048142,-500.0,0.00014379,2]
[331068668,1720059048151,-500.0,0.00014379,2]
[331068670,1720059048160,-500.61427483,0.00014379,2]
[331068672,1720059048169,-500.0,0.00014379,2]
[331068674,1720059048178,-500.0,0.00014379,2]
[331068676,1720059048187,-500.0,0.00014379,2]
[331068678,1720059048197,-500.0,0.00014379,2]
[331068680,1720059048206,-500.82497337,0.00014379,2]
[331068682,1720059048215,-500.0,0.00014379,2]
[331068684,1720059048224,-500.0,0.00014379,2]
[331068686,1720059048235,-500.0,0.00014379,2]
[331068688,1720059048244,-500.0,0.00014379,2]
[331068690,1720059048253,-500.0,0.00014379,2]
[331068692,1720059048263,-508.54983539,0.00014379,2]
[331068694,1720059048272,-500.0,0.00014379,2]
[331068696,1720059048281,-500.0,0.00014379,2]
[331068698,1720059048291,-500.0,0.00014379,2]
[331068700,1720059048300,-500.0,0.00014379,2]
[331068702,1720059048314,-500.0,0.00014379,2]
[331068704,1720059048324,-501.59178632,0.00014379,2]
[331068706,1720059048333,-500.0,0.00014379,2]
[331068708,1720059048342,-500.0,0.00014379,2]
[331068710,1720059048352,-500.0,0.00014379,2]
[331068712,1720059048361,-500.0,0.00014379,2]
[331068714,1720059048372,-500.0,0.00014379,2]
[331068716,1720059048382,-159.99063233,0.00014379,2]
[331068718,1720059048393,-501.23925816,0.00014379,2]
[331068719,1720059048403,-501.018851,0.00014379,2]
[331068722,1720059048412,-500.0,0.00014379,2]
[331068723,1720059048421,-152.737154,0.00014379,2]
[331068725,1720059048430,-151.0,0.00014379,2]
[331068727,1720059048439,-151.0,0.00014379,2]
[331068729,1720059048449,-500.0,0.00014379,2]
[331068731,1720059048458,-191.752524,0.00014379,2]
[331068733,1720059048467,-500.0,0.00014379,2]
[331068735,1720059048475,-500.0,0.00014379,2]
[331068737,1720059048485,-501.03584689,0.00014379,2]
[331068739,1720059048495,-500.27620387,0.00014379,2]
[331068741,1720059048504,-500.0,0.00014379,2]
[331068743,1720059048513,-500.0,0.00014379,2]
[331068745,1720059048523,-500.0,0.00014379,2]
[331068747,1720059048532,-500.0,0.00014379,2]
[331068749,1720059048542,-500.0,0.00014379,2]
[331068751,1720059048552,-500.0,0.00014379,2]
[331068753,1720059048561,-844.14,0.00014379,2]
[331068755,1720059048571,-500.0,0.00014379,2]
[331068757,1720059048580,-500.0,0.00014379,2]
[331068759,1720059048589,-500.0,0.00014379,2]
[331068761,1720059048599,-500.0,0.00014379,2]
[331068763,1720059048610,-500.0,0.00014379,2]
[331068765,1720059048629,-500.0,0.00014379,2]
[331068767,1720059048642,-500.0,0.00014379,2]
[331068768,1720059048651,-500.0,0.00014379,2]
[331068769,1720059048660,-500.0,0.00014379,2]
[331068770,1720059048671,-500.0,0.00014379,2]
[331068771,1720059048680,-500.0,0.00014379,2]
[331068772,1720059048689,-500.0,0.00014379,2]
[331068773,1720059048699,-500.0,0.00014379,2]
[331068774,1720059048709,-500.0,0.00014379,2]
[331068775,1720059048719,-500.0,0.00014379,2]
[331068776,1720059048728,-500.0,0.00014379,2]
[331068777,1720059048738,-500.0,0.00014379,2]
[331068778,1720059048747,-500.0,0.00014379,2]
[331068779,1720059048757,-500.0,0.00014379,2]
[331068780,1720059048767,-441.50368969,0.00014379,2]
[331068781,1720059048776,-500.0,0.00014379,2]
[331068782,1720059048786,-565.02,0.00014379,2]
[331068783,1720059048795,-500.0,0.00014379,2]
[331068784,1720059048804,-500.0,0.00014379,2]
[331068785,1720059048813,-504.5159834,0.00014379,2]
[331068786,1720059048823,-234.53555659,0.00014379,2]
[331068788,1720059048832,-500.0,0.00014379,2]
[331068790,1720059048841,-500.0,0.00014379,2]
[331068792,1720059048850,-500.0,0.00014379,2]
[331068794,1720059048859,-500.0,0.00014379,2]
[331068795,1720059048868,-500.0,0.00014379,2]
[331068797,1720059048878,-155.664017,0.00014379,2]
[331068799,1720059048887,-157.555983,0.00014379,2]
[331068801,1720059048896,-157.555983,0.00014379,2]
[331068802,1720059048906,-157.555983,0.00014379,2]
[331068803,1720059048916,-157.555983,0.00014379,2]
[331068804,1720059048925,-157.555983,0.00014379,2]
[331068805,1720059048934,-157.555983,0.00014379,2]
[331068806,1720059048944,-151.0,0.00014379,2]
[331068807,1720059048953,-151.0,0.00014379,2]
[331068808,1720059048962,-151.0,0.00014379,2]
[331068809,1720059048971,-151.0,0.00014379,2]
[331068810,1720059048980,-153.483499,0.00014379,2]
[331068811,1720059048990,-185.812681,0.00014379,2]
[331068812,1720059049000,-185.812681,0.00014379,2]
[331068813,1720059049009,-185.812681,0.00014379,2]
[331068814,1720059049019,-185.812681,0.00014379,2]
[331068815,1720059049028,-185.812681,0.00014379,2]
[331068816,1720059049038,-185.812681,0.00014379,2]
[331068817,1720059049048,-151.0,0.00014379,2]
[331068818,1720059049057,-151.0,0.00014379,2]
[331068819,1720059049067,-151.0,0.00014379,2]
[331068820,1720059049076,-151.0,0.00014379,2]
[331068821,1720059049085,-151.0,0.00014379,2]
[331068822,1720059049095,-151.0,0.00014379,2]
[331068823,1720059049104,-2498.23,0.00014379,2]
[331068824,1720059049114,-151.0,0.00014379,2]
[331068825,1720059049133,-500.74053791,0.0001438,2]
[331068826,1720059049150,-500.50316941,0.0001438,2]
[331068828,1720059049159,-606.56152629,0.0001438,2]
[331068830,1720059049169,-501.18514742,0.0001438,2]
[331068832,1720059049179,-500.0,0.0001438,2]
[331068834,1720059049189,-500.0,0.0001438,2]
[331068836,1720059049199,-153.69672979,0.0001438,2]
[331068838,1720059049208,-397.07629537,0.0001438,2]
[331068840,1720059049218,-151.862972,0.0001438,2]
[331068850,1720059049304,-500.0,0.0001438,2]
[331068852,1720059049315,-500.0,0.0001438,2]
[331068854,1720059049328,-513.13173123,0.0001438,2]
[331068856,1720059049337,-500.0,0.0001438,2]
[331068858,1720059049346,-630.87046136,0.0001438,2]
[331068860,1720059049357,-500.0,0.0001438,2]
[331068862,1720059049366,-500.0,0.0001438,2]
[331068864,1720059049375,-508.62986277,0.0001438,2]
[331068866,1720059049385,-500.0,0.0001438,2]
[331068868,1720059049394,-500.0,0.0001438,2]
[331068870,1720059049403,-501.65134713,0.0001438,2]
[331068872,1720059049414,-500.0,0.0001438,2]
[331068873,1720059049424,-224.72232243,0.0001438,2]
[331068875,1720059049434,-501.49726863,0.0001438,2]
[331068877,1720059049443,-500.0,0.0001438,2]
[331068879,1720059049453,-500.0,0.0001438,2]
[331068881,1720059049462,-501.4216616,0.0001438,2]
[331068883,1720059049471,-706.635044,0.0001438,2]
[331068885,1720059049480,-706.635044,0.0001438,2]
[331068887,1720059049490,-500.0,0.0001438,2]
[331068889,1720059049499,-500.0,0.0001438,2]
[331068891,1720059049508,-500.0,0.0001438,2]
[331068893,1720059049518,-500.0,0.0001438,2]
[331068895,1720059049527,-500.0,0.0001438,2]
[331068897,1720059049537,-500.0,0.0001438,2]
[331068899,1720059049546,-157.555983,0.0001438,2]
[331068901,1720059049555,-157.555983,0.0001438,2]
[331068903,1720059049564,-530.0165372,0.0001438,2]
[331068905,1720059049574,-500.0,0.0001438,2]
[331068907,1720059049583,-151.0,0.0001438,2]
[331068909,1720059049592,-185.812681,0.0001438,2]
[331068911,1720059049601,-185.812681,0.0001438,2]
[331068913,1720059049611,-151.0,0.0001438,2]
[331068915,1720059049621,-151.0,0.0001438,2]
[331068917,1720059049647,-9318.38,0.0001438,2]
[331068919,1720059049656,-2498.23,0.00014387,2]
[331068921,1720059049665,-706.635044,0.00014388,2]
[331068923,1720059049675,-706.635044,0.00014388,2]
[331068925,1720059049685,-500.0,0.00014388,2]
[331068927,1720059049694,-500.0,0.00014388,2]
[331068929,1720059049703,-500.0,0.00014388,2]
[331068931,1720059049712,-157.555983,0.00014388,2]
[331068932,1720059049722,-157.555982,0.00014388,2]
[331068934,1720059049732,-2498.23,0.00014388,2]
[331068936,1720059049742,-2498.23,0.00014388,2]
[331068938,1720059049752,-706.635044,0.00014389,2]
[331068940,1720059049762,-706.635044,0.00014389,2]
[331068942,1720059049771,-706.635044,0.00014389,2]
[331068944,1720059049780,-706.635044,0.00014389,2]
[331068946,1720059049791,-500.0,0.00014389,2]
[331068948,1720059049800,-1053.83,0.00014389,2]
[331068950,1720059049809,-500.0,0.00014389,2]
[331068952,1720059049819,-653.32,0.00014389,2]
[331068954,1720059049828,-1129.64,0.00014389,2]
[331068956,1720059049838,-380.84721943,0.00014389,2]
[331068958,1720059049847,-6511.19,0.00014389,2]
[331068960,1720059049857,-2902.5,0.00014389,2]
[331068962,1720059049867,-500.0,0.0001439,2]
[331068964,1720059049876,-500.0,0.0001439,2]
[331068966,1720059049886,-500.0,0.0001439,2]
[331068968,1720059049895,-500.0,0.0001439,2]
[331068970,1720059049905,-2239.55,0.0001439,2]
[331068972,1720059049915,-1232.68,0.0001439,2]
[331068974,1720059049925,-6210.67,0.0001439,2]
[331068976,1720059049935,-185.812681,0.0001439,2]
[331068978,1720059049944,-185.812681,0.0001439,2]
[331068980,1720059049954,-500.0,0.0001439,2]
[331068982,1720059049963,-151.0,0.0001439,2]
[331068984,1720059049973,-151.0,0.0001439,2]
[331068986,1720059049982,-2498.23,0.0001439,2]
[331068988,1720059049993,-2498.23,0.0001439,2]
[331068990,1720059050003,-2498.23,0.0001439,2]
[331068992,1720059050013,-2498.23,0.0001439,2]
[331068994,1720059050023,-2498.2692467,0.0001439,2]
[331068996,1720059050032,-500.0,0.00014394,2]
[331068998,1720059050041,-195.96798015,0.00014399,2]
[331069000,1720059050050,-19931.44672632,0.000144,2]
[331069002,1720059050061,-706.635044,0.000144,2]
[331069004,1720059050070,-706.635044,0.000144,2]
[331069006,1720059050080,-153.0,0.000144,2]
[331069008,1720059050089,-153.0,0.000144,2]
[331069009,1720059050099,-206.0836831,0.000144,2]
[331069011,1720059050108,-306.0,0.000144,2]
[331069014,1720059050118,-153.0,0.000144,2]
[331069016,1720059050145,-206.0836831,0.000144,2]
[331069018,1720059050155,-206.0836831,0.000144,2]
[331069020,1720059050165,-153.0,0.000144,2]
[331069022,1720059050175,-206.0836831,0.000144,2]
[331069024,1720059050184,-153.0,0.000144,2]
[331069026,1720059050194,-153.0,0.000144,2]
[331069028,1720059050204,-185.812681,0.000144,2]
[331069030,1720059050213,-185.812673,0.000144,2]
[331069032,1720059050222,-151.0,0.000144,2]
[331069033,1720059050234,-151.0,0.000144,2]
[331069035,1720059050244,-500.0,0.00014402,2]
[331069038,1720059050254,-155.0,0.0001441,2]
[331069040,1720059050264,-610.0,0.00014437,2]
[331069042,1720059050274,-881.109,0.00014475,2]
[331069044,1720059050284,-153.0,0.000145,2]
[331069046,1720059050293,-153.0,0.000145,2]
[331069048,1720059050303,-153.0,0.000145,2]
[331069050,1720059050318,-206.0836831,0.000145,2]
[331069052,1720059050330,-153.0,0.000145,2]
[331069054,1720059050340,-153.0,0.000145,2]
[331069056,1720059050350,-153.0,0.000145,2]
[331069058,1720059050361,-153.0,0.000145,2]
[331069060,1720059050371,-206.0836831,0.000145,2]
[331069062,1720059050381,-153.0,0.000145,2]
[331069064,1720059050393,-153.0,0.000145,2]
[331069066,1720059050403,-306.4145384,0.000145,2]
[331069068,1720059050413,-153.0,0.000145,2]
[331069070,1720059050422,-153.0,0.000145,2]
[331069072,1720059050431,-206.0836831,0.000145,2]
[331069074,1720059050441,-153.0,0.000145,2]
[331069076,1720059050450,-153.0,0.000145,2]
[331069078,1720059050460,-206.0836831,0.000145,2]
[331069080,1720059050469,-153.0,0.000145,2]
[331069082,1720059050479,-153.0,0.000145,2]
[331069084,1720059050488,-206.0836831,0.000145,2]
[331069086,1720059050497,-160.3517433,0.000145,2]
[331069088,1720059050507,-153.0,0.000145,2]
[331069090,1720059050516,-206.0836831,0.000145,2]
[331069093,1720059050526,-153.0,0.000145,2]
[331069095,1720059050535,-293.2428115,0.000145,2]
[331069097,1720059050544,-153.0,0.000145,2]
[331069099,1720059050553,-206.0836831,0.000145,2]
[331069101,1720059050563,-358.2266694,0.000145,2]
[331069102,1720059050572,-153.0,0.000145,2]
[331069104,1720059050582,-245.376,0.00014515,2]
[331069106,1720059050591,-150.59,0.00014515,2]
[331069108,1720059050600,-600.0,0.00014592,2]
[331069110,1720059050610,-153.0,0.000146,2]
[331069118,1720059050694,-153.0,0.000146,2]
[331069119,1720059050704,-154.3555658,0.000146,2]
[331069120,1720059050713,-307.035907,0.000146,2]
[331069121,1720059050723,-153.0,0.000146,2]
[331069122,1720059050731,-153.0,0.000146,2]
[331069124,1720059050741,-153.0,0.000146,2]
[331069126,1720059050751,-489.12250318,0.00014632,2]
[331069128,1720059050760,-500.0,0.00014632,2]
[331069130,1720059050769,-1752.48,0.00014632,2]
[331069132,1720059050779,-500.0,0.00014632,2]
[331069134,1720059050788,-10764.98,0.00014632,2]
[331069136,1720059050797,-2268.54,0.00014632,2]
[331069137,1720059050807,-500.0,0.00014632,2]
[331069138,1720059050816,-633.99,0.00014632,2]
[331069139,1720059050825,-1765.87,0.00014632,2]
[331069141,1720059050834,-504.61801658,0.00014642,2]
[331069143,1720059050843,-500.0,0.00014642,2]
[331069145,1720059050852,-500.0,0.00014642,2]
[331069147,1720059050861,-501.30089353,0.00014642,2]
[331069149,1720059050870,-500.0,0.00014642,2]
[331069151,1720059050879,-500.0,0.00014642,2]
[331069153,1720059050888,-500.0,0.00014642,2]
[331069154,1720059050898,-500.0,0.00014642,2]
[331069156,1720059050907,-197.75528447,0.00014642,2]
[331069158,1720059050916,-500.0,0.00014642,2]
[331069161,1720059050937,-500.0,0.00014642,2]
[331069163,1720059050949,-500.0,0.00014642,2]
[331069165,1720059050959,-1033.54,0.00014642,2]
[331069166,1720059050969,-177.88582175,0.00014642,2]
[331069168,1720059050980,-557.41940727,0.00014642,2]
[331069170,1720059050990,-500.0,0.00014642,2]
[331069172,1720059051000,-328.05389664,0.00014642,2]
[331069174,1720059051011,-454.0949231,0.00014642,2]
[331069176,1720059051022,-500.0,0.00014642,2]
[331069178,1720059051032,-501.74916658,0.00014642,2]
[331069180,1720059051042,-500.0,0.00014642,2]
[331069183,1720059051052,-525.29,0.00014642,2]
[331069185,1720059051063,-520.79054782,0.00014642,2]
[331069187,1720059051073,-1521.56,0.00014642,2]
[331069189,1720059051083,-506.89200503,0.00014642,2]
[331069191,1720059051094,-500.0,0.00014642,2]
[331069193,1720059051104,-500.0,0.00014642,2]
[331069195,1720059051114,-500.0,0.00014642,2]
[331069197,1720059051123,-500.0,0.00014642,2]
[331069199,1720059051134,-500.0,0.00014642,2]
[331069201,1720059051144,-500.0,0.00014642,2]
[331069203,1720059051171,-500.0,0.00014642,2]
[331069205,1720059051181,-503.5021925,0.00014642,2]
[331069207,1720059051192,-509.61133795,0.00014642,2]
[331069209,1720059051202,-500.0,0.00014642,2]
[331069211,1720059051212,-501.73289482,0.00014642,2]
[331069213,1720059051223,-503.20027461,0.00014642,2]
[331069215,1720059051235,-869.55,0.00014642,2]
[331069218,1720059051245,-1283.32,0.00014642,2]
[331069220,1720059051256,-507.45147635,0.00014642,2]
[331069222,1720059051266,-500.0,0.00014642,2]
[331069224,1720059051276,-500.0,0.00014642,2]
[331069226,1720059051285,-500.0,0.00014642,2]
[331069228,1720059051295,-500.0,0.00014642,2]
[331069230,1720059051305,-500.0,0.00014642,2]
[331069232,1720059051316,-581.18351623,0.00014642,2]
[331069234,1720059051329,-502.97177943,0.00014642,2]
[331069236,1720059051342,-737.16,0.00014642,2]
[331069238,1720059051352,-500.0,0.00014642,2]
[331069240,1720059051362,-500.0,0.00014642,2]
[331069242,1720059051372,-500.0,0.00014642,2]
[331069244,1720059051382,-500.0,0.00014642,2]
[331069246,1720059051393,-500.0,0.00014642,2]
[331069248,1720059051404,-500.0,0.00014642,2]
[331069250,1720059051414,-642.07,0.00014642,2]
[331069252,1720059051424,-500.0,0.00014642,2]
[331069254,1720059051434,-500.0,0.00014642,2]
[331069257,1720059051443,-500.0,0.00014642,2]
[331069258,1720059051453,-500.0,0.00014642,2]
[331069261,1720059051463,-500.0,0.00014642,2]
[331069263,1720059051473,-500.0,0.00014642,2]
[331069265,1720059051482,-500.0,0.00014642,2]
[331069267,1720059051492,-500.0,0.00014642,2]
[331069269,1720059051502,-500.0,0.00014642,2]
[331069271,1720059051512,-500.0,0.00014642,2]
[331069273,1720059051521,-500.0,0.00014642,2]
[331069275,1720059051531,-500.0,0.00014642,2]
[331069276,1720059051540,-500.0,0.00014642,2]
[331069278,1720059051550,-536.67711725,0.00014642,2]
[331069280,1720059051559,-500.0,0.00014642,2]
[331069282,1720059051569,-510.73407487,0.00014642,2]
[331069284,1720059051579,-500.0,0.00014642,2]
[331069286,1720059051589,-500.0,0.00014642,2]
[331069288,1720059051599,-500.0,0.00014642,2]
[331069290,1720059051608,-500.0,0.00014642,2]
[331069292,1720059051618,-500.0,0.00014642,2]
[331069294,1720059051628,-500.0,0.00014642,2]
[331069296,1720059051637,-152.8792062,0.00014642,2]
[331069298,1720059051647,-500.0,0.00014642,2]
[331069300,1720059051674,-500.0,0.00014642,2]
[331069302,1720059051683,-383.06640644,0.00014642,2]
[331069304,1720059051693,-500.0,0.00014642,2]
[331069306,1720059051703,-500.0,0.00014642,2]
[331069308,1720059051712,-814.93,0.00014642,2]
[331069310,1720059051722,-500.0,0.00014642,2]
[331069312,1720059051731,-500.0,0.00014642,2]
[331069314,1720059051740,-500.0,0.00014642,2]
[331069316,1720059051750,-236.89073783,0.00014642,2]
[331069347,1720059052086,-263.10926217,0.00014642,2]
[331069349,1720059052096,-500.0,0.00014642,2]
[331069351,1720059052106,-236.88410833,0.00014642,2]
[331069353,1720059052119,-263.11589167,0.00014642,2]
[331069355,1720059052129,-500.0,0.00014642,2]
[331069357,1720059052139,-500.0,0.00014642,2]
[331069359,1720059052149,-891.19,0.00014642,2]
[331069361,1720059052173,-500.0,0.00014642,2]
[331069362,1720059052182,-364.22224271,0.00014642,2]
[331069365,1720059052192,-500.0,0.00014642,2]
[331069367,1720059052201,-500.0,0.00014642,2]
[331069369,1720059052211,-500.0,0.00014642,2]
[331069371,1720059052220,-500.0,0.00014642,2]
[331069373,1720059052230,-500.0,0.00014642,2]
[331069375,1720059052239,-500.0,0.00014642,2]
[331069377,1720059052248,-500.0,0.00014642,2]
[331069379,1720059052258,-500.0,0.00014642,2]
[331069381,1720059052267,-500.0,0.00014642,2]
[331069382,1720059052277,-500.0,0.00014642,2]
[331069384,1720059052287,-500.0,0.00014642,2]
[331069386,1720059052297,-2217.41,0.00014642,2]
[331069387,1720059052307,-500.0,0.00014642,2]
[331069388,1720059052320,-500.0,0.00014642,2]
[331069389,1720059052330,-505.93559937,0.00014642,2]
[331069390,1720059052339,-500.0,0.00014642,2]
[331069391,1720059052348,-1105.14,0.00014642,2]
[331069392,1720059052359,-500.0,0.00014642,2]
[331069393,1720059052368,-500.0,0.00014642,2]
[331069394,1720059052378,-500.0,0.00014642,2]
[331069395,1720059052387,-500.0,0.00014642,2]
[331069396,1720059052400,-500.0,0.00014642,2]
[331069397,1720059052420,-500.0,0.00014642,2]
[331069398,1720059052429,-500.0,0.00014642,2]
[331069399,1720059052438,-567.98322241,0.00014642,2]
[331069400,1720059052448,-500.0,0.00014642,2]
[331069401,1720059052457,-500.0,0.00014642,2]
[331069402,1720059052467,-774.37,0.00014642,2]
[331069403,1720059052476,-500.0,0.00014642,2]
[331069404,1720059052487,-763.01,0.00014642,2]
[331069405,1720059052496,-500.0,0.00014642,2]
[331069406,1720059052505,-504.42497426,0.00014642,2]
[331069407,1720059052514,-500.0,0.00014642,2]
[331069408,1720059052524,-500.0,0.00014642,2]
[331069409,1720059052534,-500.0,0.00014642,2]
[331069410,1720059052543,-500.0,0.00014642,2]
[331069411,1720059052553,-573.15067934,0.00014642,2]
[331069412,1720059052562,-3922.02,0.00014642,2]
[331069413,1720059052572,-501.47481016,0.00014642,2]
[331069414,1720059052582,-500.0,0.00014642,2]
[331069415,1720059052591,-500.0,0.00014642,2]
[331069416,1720059052601,-500.0,0.00014642,2]
[331069418,1720059052610,-500.0,0.00014642,2]
[331069420,1720059052619,-500.0,0.00014642,2]
[331069422,1720059052628,-500.0,0.00014642,2]
[331069424,1720059052637,-501.11947081,0.00014642,2]
[331069426,1720059052647,-500.0,0.00014642,2]
[331069428,1720059052669,-510.24864304,0.00014642,2]
[331069430,1720059052679,-881.55,0.00014642,2]
[331069432,1720059052688,-500.0,0.00014642,2]
[331069434,1720059052697,-500.0,0.00014642,2]
[331069436,1720059052706,-500.0,0.00014642,2]
[331069438,1720059052715,-500.0,0.00014642,2]
[331069440,1720059052724,-8791.53,0.00014642,2]
[331069442,1720059052733,-500.0,0.00014642,2]
[331069444,1720059052744,-742.56,0.00014642,2]
[331069446,1720059052754,-607.21349628,0.00014642,2]
[331069448,1720059052764,-198.6592862,0.00014642,2]
[331069450,1720059052773,-500.0,0.00014642,2]
[331069452,1720059052783,-500.0,0.00014642,2]
[331069454,1720059052792,-500.0,0.00014642,2]
[331069456,1720059052801,-436.81588032,0.00014642,2]
[331069458,1720059052811,-500.0,0.00014642,2]
[331069460,1720059052820,-506.07017931,0.00014642,2]
[331069462,1720059052829,-500.0,0.00014642,2]
[331069463,1720059052839,-1176.42,0.00014642,2]
[331069465,1720059052848,-500.0,0.00014642,2]
[331069467,1720059052858,-500.0,0.00014642,2]
[331069469,1720059052867,-725.1,0.00014642,2]
[331069471,1720059052876,-500.0,0.00014642,2]
[331069473,1720059052886,-500.0,0.00014642,2]
[331069475,1720059052895,-188.87247166,0.00014642,2]
[331069477,1720059052917,-500.0,0.00014642,2]
[331069487,1720059053005,-500.0,0.00014642,2]
[331069489,1720059053015,-257.71508997,0.00014642,2]
[331069491,1720059053029,-242.28491003,0.00014642,2]
[331069493,1720059053039,-500.0,0.00014642,2]
[331069495,1720059053049,-500.0,0.00014642,2]
[331069497,1720059053059,-3598.16,0.00014642,2]
[331069498,1720059053068,-500.0,0.00014642,2]
[331069501,1720059053078,-500.0,0.00014642,2]
[331069503,1720059053088,-500.0,0.00014642,2]
[331069504,1720059053098,-500.0,0.00014642,2]
[331069507,1720059053108,-180.51399735,0.00014642,2]
[331069508,1720059053118,-500.0,0.00014642,2]
[331069510,1720059053128,-500.0,0.00014642,2]
[331069512,1720059053138,-500.0,0.00014642,2]
[331069514,1720059053147,-500.0,0.00014642,2]
[331069515,1720059053170,-500.0,0.00014642,2]
[331069517,1720059053180,-501.12731378,0.00014642,2]
[331069519,1720059053190,-1162.73,0.00014642,2]
[331069521,1720059053199,-500.0,0.00014642,2]
[331069523,1720059053209,-500.0,0.00014642,2]
[331069525,1720059053219,-500.0,0.00014642,2]
[331069527,1720059053229,-500.0,0.00014642,2]
[331069529,1720059053239,-500.0,0.00014642,2]
[331069531,1720059053249,-500.0,0.00014642,2]
[331069533,1720059053259,-500.0,0.00014642,2]
[331069535,1720059053269,-502.28656995,0.00014642,2]
[331069537,1720059053279,-500.0,0.00014642,2]